Cogmind - Beta 9.6 @@@ ROGUE MODE // 2020.09.05 @ 13:58:05 Player: Hilbert Result: Destroyed by S-10 Pest with Light Assault Rifle Performance ------------- Evolutions (1) 500 Regions Visited (2) 400 Robots Destroyed (8) 40 Value Destroyed (235) 235 Prototype IDs (0) 0 Alien Tech Used (0) 0 Bonus (0) 0 TOTAL SCORE: 1175 Bonus ------- None Cogmind --------- Core Integrity 0/400 Matter 256/300 Energy 99/100 System Corruption 0% Temperature Cool (0) Movement Core (50) Location -9/Materials Parts ------- > --- POWER (1) -------- (None) > --- PROPULSION (3) --- (None) > --- UTILITY (3) ------ (None) > --- WEAPON (2) ------- (None) > --- INVENTORY (4) ---- Light Ion Engine Wheel Heat Sink Peak State ------------ > --- POWER ------------ Ion Engine > --- PROPULSION ------- Light Treads Light Treads Wheel > --- UTILITY ---------- Small Storage Unit > --- WEAPON ----------- Assault Rifle Assault Rifle > --- INVENTORY -------- Light Ion Engine Wheel Medium Laser Grenade Launcher [Rating: 7] Favorites ----------- Power Ion Engine Engine Ion Engine Propulsion Light Treads Treads Light Treads Wheel Wheel Utility Small Storage Unit Storage Small Storage Unit Weapon Assault Rifle Energy Gun Medium Laser Ballistic Gun Assault Rifle Launcher Grenade Launcher Build | -11 -10 -9 ------- Run | Scr Mat Mat Slots Evolved 2 | . . 2 Power . | . . . Propulsion 1 | . . 1 Utility 1 | . . 1 Weapon . | . . . Parts Attached 9 | 5 . 4 Power 1 | 1 . . Engine 1 | 1 . . Core . | . . . Reactor . | . . . Propulsion 3 | 2 . 1 Treads 2 | 1 . 1 Leg . | . . . Wheel 1 | 1 . . Hover . | . . . Flight . | . . . Utility 1 | 1 . . Device . | . . . Storage 1 | 1 . . Processor . | . . . Hackware . | . . . Protection . | . . . Artifact . | . . . Weapon 4 | 1 . 3 Energy Gun 1 | . . 1 Energy Cannon . | . . . Ballistic Gun 2 | 1 . 1 Ballistic Cannon . | . . . Launcher 1 | . . 1 Special Weapon . | . . . Impact Weapon . | . . . Slashing Weapon . | . . . Piercing Weapon . | . . . Special Melee Weapon . | . . . Unidentified Prototypes . | . . . Parts Lost 7 | . . 7 Power 1 | . . 1 Propulsion 3 | . . 3 Utility . | . . . Weapon 3 | . . 3 Highest Loss Streak 7 | . . 7 Average Slot Usage (%) 60 | . 71 55 Engine 9 | . 14 7 Treads 15 | . 14 16 Wheel 9 | . 14 7 Storage 10 | . 14 9 Ballistic Gun 13 | . 14 13 Naked Turns 34 | . . 34 Heaviest Build 13 | 11 11 13 Greatest Support 40 | 10 10 40 Greatest Overweight (x) 3 | 1 1 3 Average Overweight (x) . | . 1 . Largest Inventory Capacity 6 | 6 6 6 Average Capacity 5 | 5 6 5 Most Carried 6 | 5 6 5 Average Carried 4 | 2 5 4 Final Capacity 6 | 6 6 4 Final Carried 6 | 5 6 3 Class Distribution -------------------- 100% | Mutant Dominant Class ---------------- Mutant | -10/Materials Mutant | -9/Materials Resources | -11 -10 -9 ----------- Run | Scr Mat Mat Matter Collected 357 | 250 30 77 Remotely . | . . . Salvage Created 197 | . 32 165 Parts 21 | . 7 14 Haulers Intercepted . | . . . Recyclers Shooed . | . . . Parts Field Recycled . | . . . Retrieved Matter . | . . . Parts Self-Destructed . | . . . Prevented . | . . . Kills | -11 -10 -9 ------- Run | Scr Mat Mat Combat Hostiles Destroyed 8 | . 3 5 Guns 5 | . 3 2 AOE 3 | . . 3 Classes Destroyed 3 | . 1 2 Swarmer 3 | . 3 . Grunt 3 | . . 3 Sentry 2 | . . 2 Best Kill Streak 3 | . 3 3 Combat Bots Only 3 | . 3 3 Max Kills in Single Turn 2 | . 1 2 Gunslinging . | . . . Exploded 2 | . . 2 Melee . | . . . Uniques/NPCs Destroyed . | . . . Combat | -11 -10 -9 -------- Run | Scr Mat Mat Damage Taken 1183 | . 88 1095 Core 404 | . . 404 Absorbed by Shields . | . . . Core Remaining (%) 100 | 100 100 . Volleys Fired 31 | . 10 21 Largest 2 | . 1 2 Hottest 50 | . 20 50 Shots Fired 39 | . 10 29 Gun 35 | . 10 25 Cannon . | . . . Launcher 4 | . . 4 Special . | . . . Kinetic 32 | . 10 22 Thermal 3 | . . 3 Explosive 4 | . . 4 Electromagnetic . | . . . Robot Hit Streak 29 | . 2 29 Robot Miss Streak 2 | . 2 . Penetration Max . | . . . Secondary Targets . | . . . Shots Hit Robots 33 | . 6 27 Core Hits 17 | . 3 14 Critical Hits . | . . . Critical Kills . | . . . Critical Parts Destroyed . | . . . Melee Attacks . | . . . Impact . | . . . Slashing . | . . . Piercing . | . . . Sneak Attacks . | . . . Combat Hostiles . | . . . Follow-up Attacks . | . . . Damage Inflicted 615 | . 73 542 Guns 356 | . 73 283 Cannons . | . . . Explosions 246 | . . 246 Melee . | . . . Ramming 13 | . . 13 Kinetic 319 | . 73 246 Thermal 37 | . . 37 Explosive 246 | . . 246 Electromagnetic . | . . . Impact . | . . . Slashing . | . . . Piercing . | . . . Highest Corruption . | . . . Average Corruption . | . . . Corruption Purged . | . . . Overload Shots . | . . . Overflow Damage . | . . . Projectiles . | . . . Explosions . | . . . Melee . | . . . Knockbacks . | . . . Impact . | . . . Kinetic . | . . . Secondary . | . . . Self-Inflicted Damage 83 | . . 83 Shots 4 | . . 4 Rammed 4 | . . 4 Targets Rammed 4 | . . 4 Kicked . | . . . Crushed . | . . . Highest Temperature 11 | . . 11 Average Temperature 6 | . . 6 Received Heat Transfer 330 | . . 330 Siege Activations . | . . . Robots Corrupted . | . . . Combat Hostiles . | . . . Parts Fried . | . . . Impact Corruptions . | . . . Robots Melted . | . . . Combat Hostiles . | . . . Parts Melted . | . . . Heat Transferred 111 | . . 111 Parts Sabotaged . | . . . Parts Stolen . | . . . Parts Stripped . | . . . Power Chain Reactions . | . . . Missiles Intercepted . | . . . Alert | -11 -10 -9 ------- Run | Scr Mat Mat Peak Influence 164 | . 105 164 Average Influence 77 | . 51 108 Maximum Alert Level . | . . . Low Security (%) 100 | 100 100 100 Level 1 . | . . . Level 2 . | . . . Level 3 . | . . . Level 4 . | . . . Level 5 . | . . . High Security . | . . . Max Security . | . . . Squads Dispatched 1 | . . 1 Investigation . | . . . Extermination . | . . . Reinforcement 1 | . . 1 Assault . | . . . Garrison . | . . . Intercept . | . . . Construction Impeded . | . . . Haulers Reinforced . | . . . Stealth | -11 -10 -9 --------- Run | Scr Mat Mat Distress Signals . | . . . Communications Jammed . | . . . Distress Signals . | . . . Times Spotted 20 | . 5 15 Peak Tracking Total 6 | . 4 6 Tactical Retreats 2 | . . 2 Traps | -11 -10 -9 ------- Run | Scr Mat Mat Traps Triggered . | . . . Indirectly . | . . . Trap Hack Attempts . | . . . Triggered . | . . . Disarmed . | . . . Reprogrammed . | . . . Reused . | . . . Traps Extracted . | . . . Installed . | . . . Triggered . | . . . Machines | -11 -10 -9 ---------- Run | Scr Mat Mat Machines Disabled . | . . . Max in Single Turn . | . . . Machines Sabotaged . | . . . Garrisons Compromised . | . . . Overloaded Fab Kills . | . . . Fab Network Shutdowns . | . . . Hacking | -11 -10 -9 --------- Run | Scr Mat Mat Machines Accessed 2 | . 1 1 Terminals 2 | . 1 1 Fabricators . | . . . Repair Stations . | . . . Recycling Units . | . . . Scanalyzers . | . . . Garrison Access . | . . . Total Hacks 4 | . 3 1 Successful 1 | . 1 . Failed 3 | . 2 1 Catastrophic 1 | . . 1 Database Lockouts . | . . . Manual 3 | . 3 . Terminals 4 | . 3 1 Fabricators . | . . . Repair Stations . | . . . Recycling Units . | . . . Scanalyzers . | . . . Garrison Access . | . . . Terminal Hacks . | . . . Fabricator Hacks . | . . . Repair Station Hacks . | . . . Recycling Unit Hacks . | . . . Scanalyzer . | . . . Garrison Access Hacks . | . . . Unauthorized Hacks 1 | . 1 . Terminals 1 | . 1 . Botnet 1 | . 1 . Fabricators . | . . . Repair Stations . | . . . Recycling Units . | . . . Scanalyzers . | . . . Garrison Access . | . . . Data Cores Recovered . | . . . Used . | . . . Hacking Detections 2 | . 1 1 Full Trace Events . | . . . Feedback Events . | . . . Feedback Blocked . | . . . Robot Schematics Acquired . | . . . Robots Built . | . . . Matter . | . . . Time . | . . . Total Robot Build Rating . | . . . Part Schematics Acquired . | . . . Parts Built . | . . . Matter . | . . . Time . | . . . Total Part Build Rating . | . . . Parts Repaired . | . . . Time . | . . . Parts Recycled . | . . . Recycled Matter . | . . . Retrieved Matter . | . . . Retrieved Components . | . . . Parts Scanalyzed . | . . . Part Schematics Acquired . | . . . Parts Damaged . | . . . Bothacking | -11 -10 -9 ------------ Run | Scr Mat Mat Used RIF Installer . | . . . Robots Hacked . | . . . Non-combat . | . . . Combat . | . . . Robot Hacks Applied . | . . . Relay Couplers Released . | . . . Robots Rewired . | . . . Allies Hacked . | . . . Hacks Repelled . | . . . Allies | -11 -10 -9 -------- Run | Scr Mat Mat Total Allies . | . . . Largest Group . | . . . Highest-Rated Group . | . . . Highest-Rated Ally . | . . . Total Orders . | . . . Ally Attacks . | . . . Total Damage . | . . . Kills . | . . . Allies Corrupted . | . . . Allies Melted . | . . . Intel | -11 -10 -9 ------- Run | Scr Mat Mat Robot Analysis Total . | . . . Derelict Logs Recovered . | . . . Drone Launches . | . . . Drone Recoveries . | . . . Exploration | -11 -10 -9 ------------- Run | Scr Mat Mat Turns Passed 355 | 55 88 212 Spaces Moved 272 | 49 69 154 Core 72 | 1 . 71 Treads 19 | . . 19 Legs . | . . . Wheels 181 | 48 69 64 Hover . | . . . Flight . | . . . Fastest Speed 50 | 50 90 50 Average Speed 86 | 85 90 86 Slowest Speed 200 | 90 90 200 Overloaded Moves . | . . . Propulsion Burnouts . | . . . Robots Hopped . | . . . Cave-ins Triggered . | . . . Exploration Rate (%) 16 | 4 26 20 Regions Visited 2 Branch Regions . Pre-discovered Areas . | . . . Known Exits Taken . | . . . Unknown Exits Taken 2 | 1 1 . Scrap Searched . | . . . Spaces Dug . | . . . Terrain Destroyed 19 | . . 19 Melee . | . . . Projectile . | . . . AOE 19 | . . 19 Actions | -11 -10 -9 --------- Run | Scr Mat Mat Total 347 | 59 84 204 Wait 26 | 1 5 20 Move 270 | 48 68 154 Hop . | . . . Pick Up 7 | 5 1 1 Fast Attach 5 | 5 . . Attach 4 | . . 4 Detach . | . . . Swap . | . . . Drop . | . . . Fire 31 | . 10 21 Melee . | . . . Ram 4 | . . 4 Kick . | . . . Crush . | . . . Escape Stasis . | . . . Rewire . | . . . Trap . | . . . Miscellaneous . | . . . Route ------- -11/Scrapyard -10/Materials -9/Materials History --------- Turn | Location | Event 9 | -11/Scrapyard | Discovered new exit (range 16) 56 | -11/Scrapyard | Entered Materials 129 | -10/Materials | Discovered new exit (range 15) 144 | -10/Materials | Entered another Materials area 144 | -9/Materials | Evolved 2 slots: Propulsion x1, Utility x1 312 | -9/Materials | Core integrity fell below 50% 322 | -9/Materials | Released all parts (2) 335 | -9/Materials | Build established: Mutant 344 | -9/Materials | Lost 7 parts (1p3n3w) 344 | -9/Materials | Core integrity fell below 20% 356 | -9/Materials | Destroyed by S-10 Pest with Light Assault Rifle Last Messages --------------- 00280_ Current location identified: Materials 00281_ Assault Rifle destroyed. 00282_ K-01 Serf cleans the Terminal. 00282_ Wheel destroyed. 00293_ Ion Engine destroyed. 00300_ Lgt. Treads destroyed. 00304_ Assault Rifle destroyed. 00308_ Broken Lgt. Treads destroyed. 00308_ G-34 Mercenary destroyed. 00312_ G-47 Trooper destroyed. 00312_ G-34 Mercenary destroyed. 00313_ Grenade Launcher destroyed. 00320_ U-05 Engineer lays Concrete. 00322_ Released Med. Laser. 00322_ Released Sml. Storage Unit. 00323_ U-05 Engineer lays Concrete. 00332_ O-16 Technician: "IFF HANDSHAKE FAILED. SECURING TERMINAL." 00339_ ALERT: Hostiles spotted, dispatching reinforcements to Terminal M009. 00353_ Slammed into S-10 Pest. Map ----- +----------------------------------------------------+ | ???????????????????????????????###???????????????? | | ???????????????????????????????# ??????????????? | | ???????????????????????????????# """??#???????? | | ???????????????????????????????# """"" #???????? | | ???????????????????????????????# """"" #???????? | | ???????????????????????????????# """"" #???????? | | ???????????????????????????????# """ #???????? | | ???????????????????????????????? ????????? | | ?????????????????????????????????? ??????????? | | ??????????????????????????????????##/#####+###???# | | ?????????????????????############## #???# | | ?????????????????????# + #???# | | ?????????????????????# # #####+####### | | ?????????????????????# # ## + | | ?????????????????????# + ## ##### | | ?????????????????????# # ## """ #???# | | ?????????????????????########+##### ## """ #???# | | ????????????????????????????# #### # """ #???# | | ?????????????##?########????# "" # #???? | | ?????????????# #????# T ########???? | | ?????????????# """ """ #????# ### ]#??????????? | | ?????????????# """ """ #????# #?##+###????######? | | ?????????????# """ """ ###### #??????????## !!! | | ?????????????# """ """ s #??????????# !!! | | ?????????????# """ """ # #???????????# !!! | | ?????????????# ##@ #???????????# | | ?????????????# ! =## #???????????# | | ?????????????############ #???????????# ? | | ????????????????????????# #???????????######? | | ????????????????????????# #?????????????????? | | ????????????????????????# #?????????????????? | | ????????????????????????# #?????????????????? | | ????????????????????????# #?????????????????? | | ????????????????????????# #?????????????????? | | ????????????????????????# #?????????????????? | | ????????????????????????#+###+##?????? ####??????? | | ??????????????????????????????????????? ??????? | | ???????????????????????????????????????""" ?????? | | ???????????????????????????????????????"""" ?????? | | ??????????????????????????????????????""""" ##### | | ?????????????????????????????????????#""""" # | | ?????????????????????????????????????# """ + | | ?????????????????????????????????????# # | | ?????????????????????????????????????# ### # | | ?????????????????????????????????????# ???# # | | ?????????????????????????????????????# ???# # | | ?????????????????????????????????????# ????# # | | ?????????????????????????????????????######????# # | | ???????????????????????????????????????????????# # | | ???????????????????????????????????????????????# # | +----------------------------------------------------+ Best States ------------- Heat Dissipation 28 Energy Generation 10 Energy Capacity 250 Matter Stores 300 Matter Capacity 300 Sight Range 16 Terrain Scan Density 10 Evasion (%) 50 Recoil Reduction 2 Item Schematics ----------------- None Robot Schematics ------------------ None Fabricated ------------ Nothing Alien Tech Used ----------------- None Achievements -------------- None Challenges ------------ None Game ------ Seed WeldingRecyclingCloak Manual? 0 Play Time 00:05:54 Cumulative 24.6 hours Start 2020.09.05 @ 13:52:12 End 2020.09.05 @ 13:58:05 Sessions 1 Manual Loads 0 Difficulty Rogue Special Mode None Game No. 55 Rogue 55 Adventurer 0 Explorer 0 Win Type - Total 0 Types 0/0/0/0/0/0/0 Lore% 26 Gallery% 33 Achievement% 24 Wizard Run 0 Options --------- ASCII 0 Keyboard 1 Movement Vi Keybinds 0 Fullscreen 1 Font 18/SmallcapsGlow Map View 76x50 Tactical HUD 1 Map Filters NONE Filters NONE Steam 1 RUN: cb4b06d8-6bc5-4535-bc39-e418d37ee0a8